Cogmind - Beta 16 @@@ ROGUE MODE // 2026.02.05 @ 16:26:02 // Winter2019/RPGLIKE Player: [HK-flammen] Result: Destroyed by G-34 Mercenary with Small Laser Performance ------------- Evolutions (1) 500 Regions Visited (3) 600 Robots Destroyed (184) 920 Value Destroyed (4830) 4830 Prototype IDs (7) 140 Alien Tech Used (0) 0 Bonus (2320) 2320 TOTAL SCORE: 9310 Bonus ------- Triggered High Security 500 High Alert Combat Kills 1710 Follower Combat Kills 110 Cogmind --------- Core Integrity 0/1000 Matter 300/300 Energy 640/640 System Corruption 13% Temperature Cool (6) Movement Walking (110) Location -9/Storage Parts ------- > --- POWER (3) -------- Heavy Ion Engine Heavy Ion Engine Heavy Ion Engine > --- PROPULSION (3) --- Aluminum Leg Improved Aluminum Leg Improved Aluminum Leg > --- UTILITY (4) ------ Improved Heat Sink Signal Interpreter > --- WEAPON (3) ------- Hammer Heavy Hammer Heavy Hammer > --- INVENTORY (3) ---- Cooled Aerolev Unit Cooling System Plasma Cutter Peak State ------------ > --- POWER ------------ Heavy Ion Engine Heavy Ion Engine Heavy Ion Engine > --- PROPULSION ------- Aluminum Leg Improved Aluminum Leg Cooled Aerolev Unit > --- UTILITY ---------- Improved Heat Sink Sensor Array Signal Interpreter Medium Armor Plating > --- WEAPON ----------- Rocket Launcher Heavy Hammer Heavy Hammer > --- INVENTORY -------- Protomatter Cooling System Plasma Cutter [Rating: 31] Favorites ----------- Power Heavy Ion Engine Engine Heavy Ion Engine Power Core Light Nuclear Core Propulsion Aluminum Leg Leg Aluminum Leg Hover Unit Cooled Aerolev Unit Utility Signal Interpreter Device Sensor Array Processor Signal Interpreter Protection Medium Armor Plating Weapon Heavy Hammer Energy Gun Beam Rifle Launcher Rocket Launcher Impact Weapon Heavy Hammer Build | -11 -10 -9 -9 ------- Run | Yrd Mat Mat Sto Slots Evolved 9 | 3 2 2 2 Power 2 | . . . 2 Propulsion 2 | 1 . 1 . Utility 3 | 1 2 . . Weapon 2 | 1 . 1 . Parts Attached 49 | 6 16 7 20 Power 13 | 2 1 2 8 Engine 11 | 2 . 2 7 Core 2 | . 1 . 1 Reactor . | . . . . Propulsion 11 | 2 2 1 6 Treads . | . . . . Leg 10 | 2 2 1 5 Wheel . | . . . . Hover 1 | . . . 1 Flight . | . . . . Utility 14 | . 6 4 4 Device 4 | . 2 1 1 Storage . | . . . . Processor 2 | . 2 . . Hackware . | . . . . Protection 8 | . 2 3 3 Artifact . | . . . . Weapon 11 | 2 7 . 2 Energy Gun 6 | 2 4 . . Energy Cannon . | . . . . Ballistic Gun . | . . . . Ballistic Cannon . | . . . . Launcher 2 | . 1 . 1 Special Weapon . | . . . . Impact Weapon 3 | . 2 . 1 Slashing Weapon . | . . . . Piercing Weapon . | . . . . Special Melee Weapon . | . . . . Unidentified Prototypes 3 | . . 2 1 Corrupted Parts 2 | . . . 2 System Corruption 9 | . . . 9 Parts Lost 6 | . . 2 4 Power 1 | . . 1 . Propulsion . | . . . . Utility 5 | . . 1 4 Weapon . | . . . . Highest Loss Streak 1 | . . 1 1 To Critical Strikes . | . . . . Average Backups 2 | . 1 2 2 Power . | . . . . Propulsion . | . . 1 . Utility . | . . . . Weapon . | . 1 1 . Tool/Special . | . . . . Unused Backups 5 | . 2 1 2 Power . | . . . . Propulsion 2 | . . 1 1 Utility 1 | . 1 . . Weapon 1 | . 1 . . Tool/Special 1 | . . . 1 Average Slot Usage (%) 91 | . 93 84 95 Engine 8 | . 2 5 18 Core 4 | . 10 . 1 Leg 24 | . 25 24 22 Device 13 | . 12 14 14 Processor 8 | . 8 9 7 Protection 7 | . 8 9 5 Energy Gun 4 | . 11 . . Launcher 3 | . 2 . 5 Impact Weapon 15 | . 11 19 15 Peak Build Rating 31 | 5 13 16 31 Average Rating 15 | 4 11 13 23 On Entrance 8 | . 5 13 16 Avg Prop Armor Cover (%) 9 | . . . 9 Naked Turns . | . . . . Heaviest Build 43 | 9 23 24 43 Greatest Support 46 | 20 30 40 46 Greatest Overweight (x) 3 | . 2 . 3 Average Overweight (x) . | . . . . Largest Inventory Capacity 3 | 2 2 3 3 Average Capacity 2 | 2 2 2 3 Most Carried 3 | 2 2 3 3 Average Carried 2 | . 1 2 2 Final Capacity 3 | 2 2 3 3 Final Carried 3 | 1 2 3 3 Class Distribution -------------------- 48% | Gladiator 26% | Mutant 12% | Scavenger-Gladiator 10% | Commander-Gladiator Dominant Class ---------------- Mutant | -10/Materials Gladiator | -9/Materials Scavenger-Gladiator | -9/Storage Resources | -11 -10 -9 -9 ----------- Run | Yrd Mat Mat Sto Matter Collected 1768 | 260 755 175 578 Remotely . | . . . . Salvage Created 5485 | 106 1025 1596 2758 Parts 179 | 2 37 46 94 Haulers Intercepted 12 | . 2 4 6 Recyclers Shooed 3 | 1 1 1 . Parts Field Recycled . | . . . . Retrieved Matter . | . . . . Parts Self-Destructed . | . . . . Prevented . | . . . . Parts Restored . | . . . . Kills | -11 -10 -9 -9 ------- Run | Yrd Mat Mat Sto Combat Hostiles Destroyed 100 | . 12 25 63 Melee 38 | . 1 8 29 Guns 7 | . 7 . . AOE 12 | . 1 1 10 Classes Destroyed 15 | 2 6 4 3 Worker 32 | . 9 10 13 Builder 11 | . . 6 5 Tunneler 7 | 1 4 2 . Hauler 12 | . 2 4 6 Recycler 10 | 1 1 4 4 Mechanic 1 | . . . 1 Operator 1 | . 1 . . Watcher 10 | . 3 5 2 Swarmer 6 | . . 6 . Grunt 64 | . 11 9 44 Brawler 2 | . . . 2 Duelist 3 | . . 1 2 Protector 4 | . . . 4 Sentry 20 | . . 9 11 Subdweller 1 | . 1 . . Best Kill Streak 10 | 1 3 5 10 Combat Bots Only 10 | . 2 5 10 Max Kills in Single Turn 4 | 1 3 1 4 Gunslinging . | . . . . Exploded 3 | . 1 1 3 Melee 1 | . 1 1 1 Uniques/NPCs Destroyed . | . . . . Combat | -11 -10 -9 -9 -------- Run | Yrd Mat Mat Sto Hostile Shots Fired 584 | . 51 116 417 Missed 157 | . 16 36 105 Hits 427 | . 35 80 312 Melee 19 | . . . 19 Projectile 408 | . 35 80 293 AOE 3 | . 3 . . Critical Strikes 14 | . 2 4 8 Damage Taken 5527 | . 698 1110 3719 Core 4043 | . 554 785 2704 Absorbed by Shields . | . . . . Redirected to Core 3287 | . 408 592 2287 Ignored by Resistances 945 | . 33 160 752 Regen/Repaired (Parts) 73 | . 46 . 27 Core Remaining (%) 75 | 100 51 . . Volleys Fired 149 | 6 118 2 23 Largest 2 | 2 2 1 1 Hottest 112 | 100 112 33 33 Shots Fired 238 | 12 200 2 24 Gun 174 | 12 162 . . Cannon . | . . . . Launcher 64 | . 38 2 24 Special . | . . . . Kinetic . | . . . . Thermal 174 | 12 162 . . Explosive 64 | . 38 2 24 Electromagnetic . | . . . . Robot Hit Streak 11 | 5 11 . 6 Robot Miss Streak 4 | 1 4 . 2 Penetration Max . | . . . . Secondary Targets . | . . . . Shots Hit Robots 421 | 8 111 104 198 Core Hits 122 | 3 36 14 69 Critical Kills 14 | . . 4 10 Critical Parts Destroyed 37 | . 2 14 21 Critical Strikes 59 | 2 7 18 32 Burn 7 | 2 5 . . Smash 52 | . 2 18 32 Melee Attacks 412 | . 40 136 236 Impact 412 | . 40 136 236 Slashing . | . . . . Piercing . | . . . . Sneak Attacks 64 | . 10 28 26 Combat Hostiles . | . . . . Follow-up Attacks 34 | . . 9 25 Damage Inflicted 16799 | 101 2636 4812 9250 Guns 1325 | 101 1224 . . Cannons . | . . . . Explosions 1760 | . 265 . 1495 Melee 13711 | . 1144 4812 7755 Ramming 3 | . 3 . . Kinetic . | . . . . Thermal 1325 | 101 1224 . . Explosive 1760 | . 265 . 1495 Electromagnetic . | . . . . Impact 13711 | . 1144 4812 7755 Slashing . | . . . . Piercing . | . . . . Highest Corruption 13 | . 1 1 13 Average Corruption 2 | . 1 1 3 Corruption Purged . | . . . . Corruption Blocked . | . . . . Effects 54 | . 8 11 35 Message Errors 10 | . 1 2 7 Matter Fused 16 | . 3 4 9 Heat Flow Errors 3 | . . 1 2 Energy Discharges 6 | . 1 . 5 Parts Rejected 2 | . . 1 1 Data Loss (minor) 12 | . 2 3 7 Data Loss (major) 1 | . . . 1 Misfires 2 | . 1 . 1 Alerts 2 | . . . 2 Overload Shots . | . . . . Overflow Damage 4527 | . 660 1778 2089 Projectiles 11 | . . 4 7 Explosions 69 | . 25 . 44 Melee 4447 | . 635 1774 2038 Knockbacks 45 | . 3 21 21 Impact 42 | . 3 19 20 Kinetic . | . . . . Secondary 3 | . . 2 1 Self-Inflicted Damage 296 | . 48 . 248 Shots 7 | . 1 . 6 Rammed . | . . . . Targets Rammed 1 | . 1 . . Kicked 1 | . 1 . . Crushed . | . . . . Highest Temperature 202 | 156 198 202 128 Average Temperature 44 | 66 40 116 70 Received Heat Transfer 2688 | . 282 384 2022 Siege Activations . | . . . . Martial Activations . | . . . . Shielding Activations . | . . . . Robots Disrupted . | . . . . Combat Hostiles . | . . . . Robots Corrupted 73 | . 5 33 35 Combat Hostiles 41 | . 1 16 24 Parts Fried 105 | . 8 46 51 Impact Corruptions 179 | . 18 73 88 Robots Melted 3 | . 3 . . Combat Hostiles 2 | . 2 . . Parts Melted 10 | . 9 . 1 Heat Transferred 4255 | 444 3811 . . Parts Sabotaged . | . . . . Parts Stolen . | . . . . Parts Stripped . | . . . . Power Chain Reactions . | . . . . Alert | -11 -10 -9 -9 ------- Run | Yrd Mat Mat Sto Maximum Alert Level 5 | . 2 3 5 Low Security (%) 22 | 100 59 . . Level 1 24 | . 20 51 8 Level 2 24 | . 20 42 13 Level 3 8 | . . 5 20 Level 4 8 | . . . 25 Level 5 6 | . . . 17 High Security 4 | . . . 13 Max Security . | . . . . Peak Influence 2142 | 5 638 715 2142 Initial 299 | . . 267 299 Average 613 | 2 206 452 1211 Influence Increases 5178 | 10 1350 1174 2644 Destroy 0b10 Robot/C 1980 | . 220 500 1260 Destroy 0b10 Robot/NC 445 | 10 100 155 180 Destroy Leader 544 | . 60 188 296 Allied During Kill 113 | . . . 113 Trap Triggered on 0b10 20 | . 20 . . Successful Hack 64 | . 21 38 5 Disable Machine 1125 | . 480 255 390 Destroy Structure 617 | . 389 23 205 Lose Combat Pursuer 270 | . 60 15 195 Influence Decreases 3046 | 10 716 1099 1221 Entered New Map 777 | . . 367 410 Time Decay 1709 | 10 566 562 571 Lost Part 60 | . . 20 40 Lost Ally 200 | . . . 200 Purge Threat 300 | . 150 150 . Squads Dispatched 30 | . 3 6 21 Investigation 9 | . 2 3 4 Extermination . | . . . . Reinforcement 5 | . 1 3 1 Assault 15 | . . . 15 Garrison 1 | . . . 1 Intercept . | . . . . Searches Triggered . | . . . . Construction Impeded 2 | . . 2 . Haulers Reinforced . | . . . . Active Scanning Responses . | . . . . Cargo Convoy Interrupts . | . . . . Stealth | -11 -10 -9 -9 --------- Run | Yrd Mat Mat Sto Distress Signals 9 | . 3 4 2 Communications Jammed . | . . . . Distress Signals . | . . . . Times Spotted 173 | . 19 34 120 Peak Tracking Total 18 | . 4 4 18 Tactical Retreats 11 | . 3 1 7 Traps | -11 -10 -9 -9 ------- Run | Yrd Mat Mat Sto Traps Triggered 10 | . 5 5 . Indirectly . | . . . . Trap Hack Attempts . | . . . . Triggered . | . . . . Disarmed . | . . . . Reprogrammed 3 | . 3 . . Reused 2 | . 2 . . Traps Extracted . | . . . . Installed . | . . . . Triggered 2 | . 2 . . Machines | -11 -10 -9 -9 ---------- Run | Yrd Mat Mat Sto Machines Disabled 76 | . 33 17 26 Max in Single Turn 2 | . 2 1 2 Garrison Access 1 | . . . 1 Machines Repaired . | . . . . Machines Dismantled . | . . . . Machines Sabotaged . | . . . . Overloaded Fab Kills . | . . . . Hacking | -11 -10 -9 -9 --------- Run | Yrd Mat Mat Sto Machines Accessed 24 | . 6 9 9 Terminals 20 | . 5 8 7 Fabricators . | . . . . Repair Stations 2 | . 1 . 1 Recycling Units . | . . . . Scanalyzers 1 | . . 1 . Garrison Access 1 | . . . 1 Total Hacks 68 | . 17 29 22 Successful 34 | . 11 13 10 Failed 33 | . 6 15 12 Catastrophic 5 | . . 3 2 Database Lockouts 1 | . . 1 . Manual 40 | . 6 21 13 Terminals 59 | . 14 27 18 Fabricators . | . . . . Repair Stations 5 | . 3 . 2 Recycling Units . | . . . . Scanalyzers 2 | . . 2 . Garrison Access 2 | . . . 2 Terminal Hacks 12 | . 5 4 3 Prototype ID Bank 2 | . 1 1 . Open Door 1 | . . . 1 Repair Station Index 1 | . . 1 . Alert Level 2 | . 1 1 . Unreport Threat 2 | . 1 1 . Locate Traps 2 | . 1 . 1 Reprogram Traps 1 | . 1 . . Hauler Manifests 1 | . . . 1 Fabricator Hacks . | . . . . Repair Station Hacks 4 | . 2 . 2 Scan Component 2 | . 1 . 1 Repair 2 | . 1 . 1 Recycling Unit Hacks . | . . . . Scanalyzer 1 | . . 1 . Retrieve Study 1 | . . 1 . Garrison Access Hacks 1 | . . . 1 Seal Access 1 | . . . 1 Unauthorized Hacks 16 | . 4 8 4 Terminals 16 | . 4 8 4 Botnet 16 | . 4 8 4 Fabricators . | . . . . Repair Stations . | . . . . Recycling Units . | . . . . Scanalyzers . | . . . . Garrison Access . | . . . . Data Cores Recovered . | . . . . Used . | . . . . Hacking Detections 18 | . 6 7 5 Full Trace Events 7 | . 2 2 3 Feedback Events . | . . . . Feedback Blocked . | . . . . Robot Schematics Acquired . | . . . . Robots Built . | . . . . Authchips . | . . . . Time . | . . . . Total Robot Build Rating . | . . . . Part Schematics Acquired . | . . . . Parts Built . | . . . . Authchips . | . . . . Time . | . . . . Total Part Build Rating . | . . . . Part Studies Acquired 1 | . . 1 . Parts Repaired 2 | . 1 . 1 Time 58 | . 26 . 32 Parts Recycled . | . . . . Recycled Matter . | . . . . Retrieved Matter . | . . . . Retrieved Components . | . . . . Parts Scanalyzed . | . . . . Part Schematics Acquired . | . . . . Parts Damaged . | . . . . Bothacking | -11 -10 -9 -9 ------------ Run | Yrd Mat Mat Sto Used RIF Installer . | . . . . Robots Hacked . | . . . . Non-combat . | . . . . Combat . | . . . . Robot Hacks Applied . | . . . . Relay Couplers Released 1 | . . . 1 Machine Destruction 1 | . . . 1 Fabnet Peak Effective % . | . . . . Robots Rewired . | . . . . Allies Hacked . | . . . . Hacks Repelled . | . . . . Allies | -11 -10 -9 -9 -------- Run | Yrd Mat Mat Sto Total Allies 10 | . . . 10 Largest Group 10 | . . . 10 Highest-Rated Group 88 | . . . 88 Highest-Rated Ally 16 | . . . 16 Total Orders . | . . . . Ally Attacks 74 | . . . 74 Total Damage 664 | . . . 664 Kills 4 | . . . 4 Allies Corrupted . | . . . . Allies Melted . | . . . . Intel | -11 -10 -9 -9 ------- Run | Yrd Mat Mat Sto Active Infowar (turns) 5031 | . 1378 1668 1985 Optics 710 | . 710 . . Sensors 4321 | . 668 1668 1985 Robot Analysis Total . | . . . . Derelict Logs Recovered . | . . . . Drone Launches . | . . . . Drone Recoveries . | . . . . Exploration | -11 -10 -9 -9 ------------- Run | Yrd Mat Mat Sto Turns Passed 5897 | 82 2150 1668 1997 Spaces Moved 2960 | 47 1123 919 871 Core 10 | 8 1 . 1 Treads . | . . . . Legs 2950 | 39 1122 919 870 Wheels . | . . . . Hover . | . . . . Flight . | . . . . Fastest Speed 50 | 50 120 120 110 Average Speed 124 | 108 126 120 126 Slowest Speed 200 | 120 190 120 200 Overloaded Moves . | . . . . Propulsion Burnouts . | . . . . Robots Hopped . | . . . . Potential Cave-ins 2 | . 1 1 . Cave-ins Triggered . | . . . . Exploration Rate (%) 65 | 4 99 76 83 Regions Visited 3 Branch Regions 1 Pre-discovered Areas . | . . . . Known Exits Taken 2 | . 1 1 . Unknown Exits Taken 1 | 1 . . . Scrap Searched . | . . . . Spaces Dug 59 | . 54 1 4 Terrain Destroyed 771 | . 519 45 207 Melee 6 | . 1 1 4 Projectile . | . . . . AOE 765 | . 518 44 203 Terrain Rammed . | . . . . Walls Destroyed . | . . . . Machines Disabled . | . . . . Actions | -11 -10 -9 -9 --------- Run | Yrd Mat Mat Sto Total 4313 | 66 1583 1270 1394 Wait 553 | . 241 180 132 Move 2957 | 46 1122 918 871 Hop . | . . . . Pick Up 36 | 7 7 9 13 Fast Attach 29 | . 16 7 6 Attach 9 | 5 . 1 3 Detach . | . . . . Swap 38 | 1 16 5 16 Drop 45 | 1 15 8 21 Fire 149 | 6 118 2 23 Melee 344 | . 34 116 194 Ram . | . . . . Kick 1 | . 1 . . Crush . | . . . . Escape Stasis . | . . . . Rewire 2 | . . . 2 Trap . | . . . . Miscellaneous 150 | . 13 24 113 Route ------- -11/Scrapyard -10/Materials (discovered 5 exits: *Mat x3 / [*Min] / [*Sub]) -9/Materials (discovered 4 exits: *Mat x2 / *Sto x2) -9/Storage History --------- Turn | Location | Event 1 | -11/Scrapyard | Upgraded with Propulsion slot (x1) 1 | -11/Scrapyard | Upgraded with Utility slot (x1) 1 | -11/Scrapyard | Upgraded with Weapon slot (x1) 7 | -11/Scrapyard | Discovered new exit (range 15) 83 | -11/Scrapyard | Entered Materials 310 | -10/Materials | Build established: Mutant 560 | -10/Materials | Discovered new exit (range 12) 683 | -10/Materials | Derelicts attacked the area 775 | -10/Materials | Core integrity fell below 50% 940 | -10/Materials | Discovered new exit (range 17) 1022 | -10/Materials | Repaired Aluminum Leg 1165 | -10/Materials | Reached level 2 1168 | -10/Materials | Upgraded with Utility slot (x1) 1258 | -10/Materials | Build established: Gladiator 1274 | -10/Materials | Discovered new exit (range 14) 1688 | -10/Materials | Reached level 3 1689 | -10/Materials | Upgraded with Utility slot (x1) 1715 | -10/Materials | Discovered new exit (range 6) 1964 | -10/Materials | Discovered new exit (range 16) 2029 | -10/Materials | Build established: Mutant 2029 | -10/Materials | Identified exit to Materials 2233 | -10/Materials | Entered another Materials area 2235 | -9/Materials | Reached level 4 2331 | -9/Materials | Reached level 5 2512 | -9/Materials | Build established: Gladiator 2822 | -9/Materials | Reached level 6 2836 | -9/Materials | Upgraded with Propulsion slot (x1) 2836 | -9/Materials | Upgraded with Weapon slot (x1) 3008 | -9/Materials | Discovered new exit (range 7) 3014 | -9/Materials | Central database locked down 3052 | -9/Materials | Identified exit to Materials 3514 | -9/Materials | Reached level 7 3532 | -9/Materials | Discovered new exit (range 14) 3599 | -9/Materials | Discovered exit to Materials (range 12) 3660 | -9/Materials | Core integrity fell below 50% 3833 | -9/Materials | Discovered new exit (range 11) 3851 | -9/Materials | Identified exit to Storage 3901 | -9/Materials | Entered Storage 3903 | -9/Storage | Reached level 8 3903 | -9/Storage | Upgraded with Power slot (x2) 4127 | -9/Storage | Reached level 9 4301 | -9/Storage | First assault squad dispatched 4399 | -9/Storage | Core integrity fell below 20% 4425 | -9/Storage | Destroyed 10 combat bots 4673 | -9/Storage | Reached level 10 4735 | -9/Storage | Build established: Scavenger-Gladiator 4840 | -9/Storage | Garrison activated, responded to threat 5006 | -9/Storage | Assisted by bots powering up and referring to "LRC-V3" 5203 | -9/Storage | Lost 3 allies 5249 | -9/Storage | System corruption reached 10% 5290 | -9/Storage | Build established: Commander-Gladiator 5431 | -9/Storage | Repaired Cooling System 5581 | -9/Storage | Reached level 11 5627 | -9/Storage | High security lockdown imminent 5634 | -9/Storage | Lost 7 allies 5707 | -9/Storage | High security lockdown engaged 5898 | -9/Storage | Destroyed by G-34 Mercenary with Small Laser Last Messages --------------- G-47 Trooper unfolds itself. L-31 Rogue unfolds itself. B-36 Bruiser unfolds itself. G-34 Mercenary unfolds itself. M-13 Machinist unfolds itself. Lgt. Armor Plating severed. Sensor Array destroyed. System corrupted by crushing effect (+3). Knocked back. Hammer follow-up attack on L-31 Rogue. Destroyed Melee Analysis Suite. L-31 Rogue system corrupted by crushing effect. C-45 Heavy ARC bursts open, deploying its payload. G-47 Trooper unfolds itself. B-36 Bruiser unfolds itself. L-31 Rogue unfolds itself. I-25 Savior unfolds itself. M-13 Machinist repairs G-34 Mercenary Sml. Laser. Map ----- +----------------------------------------------------+ | % " #???????????????????? | | ]## #?!! #???????????????????? | | %####?? !#??????????? ?????? | | ###?????##??????????# #????? | | #???????????????????# #????? | | ##???????###????????#" #????? | | ######### #????????+%" #????? | | ### #????????#" #????? | | #?# """ #????????# #????? | | #?# """ #????????+ #????? | | #?# " " #????????# #????? | | #?# #????????# #????? | | #?# [ " "*#????????# ##???? | | ??# """!#????????# "#???? | | ??# """ #????????# "#???? | | ??# [%! #?######?# "#???? | | ######+###+### #?# #???? | | *] %%% %% ### "#???? | | ![ % %% % =%! ["#???? | | ##############% %%### *%"#???? | | ????????????###=%##?# =[##???? | | ##???????#??#T# #??###*#????? | | #???????#==" + #????#g#????? | | #???????#== # ######g###??? | | ####????#==" # #%=%mgbgl#??? | | # ##???##?### #i%!!=bl@#??? | | ########?# [+=*!%gibg#??? | | # # ### *#%"=""!"=#??? | | # ##%[#!"*""="!#??? | | ##[[# "|""]" #??? | | [ [= = # "!"""" #??? | | # ## # """?? #??? | | ## + ???? #??? | | # ## ###????###??? | | # ### #???????????? | | # #?# ???????????? | | ###########?# ??????????? | | #+#???????????###+#??????????? | | ?????????????????????????????? | | ?????????????????????????????? | | ?????????????????????????????? | | ?????????????????????????????? | | ?????????????????????????????? | | ?????????????????????????????? | | ?????????????????????????????? | | ?????????????????????????????? | | | | | | | | | +----------------------------------------------------+ Best States ------------- Heat Dissipation 65 Energy Generation 32 Energy Capacity 640 Matter Stores 300 Matter Capacity 300 Sight Range 18 Robot Scan Range 18 Terrain Scan Density 10 Armor Coverage 375 Resistance: KI 20 Resistance: TH 20 Resistance: EX 20 Evasion (%) 55 Offensive Hacking 20 Item Schematics ----------------- None Robot Schematics ------------------ None Fabricated ------------ Nothing Repaired ---------- Aluminum Leg | 48% | -10/Materials Cooling System | 46% | -9/Storage Studied --------- Imp. Aluminum Leg | -9/Materials | Hacked Alien Tech Used ----------------- None Achievements -------------- None Challenges ------------ None RPGLIKE | -11 -10 -9 -9 --------- Run | Yrd Mat Mat Sto Levels Raised 10 | . 2 4 4 XP Earned 18520 | 3000 3910 6360 5250 XP Spent 17925 | 2900 3050 6040 5935 Upgrades 49 | 8 6 22 13 Power Slot 2 | . . . 2 Propulsion Slot 2 | 1 . 1 . Utility Slot 3 | 1 2 . . Weapon Slot 2 | 1 . 1 . Core Integrity 8 | . . 8 . Heat Dissipation 4 | . 1 2 1 Mass Support 2 | . 2 . . Inventory Capacity 3 | 2 . 1 . Sensor Range 2 | . . . 2 Melee Accuracy 5 | 2 1 1 1 Hack Attack % 4 | . . . 4 KI Resistance % 4 | . . 3 1 TH Resistance % 4 | 1 . 2 1 EX Resistance % 4 | . . 3 1 Protomatter Created 1236 | . 116 321 799 Integrity Restored 3231 | . 282 531 2418 Core 3038 | . 260 531 2247 Parts 193 | . 22 . 171 Protomatter Decayed 83 | . 15 23 45 Game ------ Seed FlightBeamJammer Manual? 0 Play Time 00:54:48 Cumulative 72.9 hours Start 2026.02.05 @ 15:26:58 End 2026.02.05 @ 16:26:02 Sessions 1 Manual Loads 0 Difficulty Rogue Special Mode Winter2019/RPGLIKE Game No. 36 Rogue 6 Adventurer 30 Explorer 0 Win Type - Total 1 Types 1/0/0/0/0/0/0/0/0/0 Lore% 26 Gallery% 31 Achievement% 31 Wizard Run 0 Options --------- Layout 2 ASCII 0 Keyboard 0 Movement Numpad Keybinds 0 Fullscreen 1 Font 16/SmallcapsGlow Map View 25x24 Zoom Use 36% Tactical HUD 0 Map Filters NONE Filters NONE Steam 1 RUN: 58ea79b9-a264-495b-8b78-5a470b0585cb